[Event "Catalonia Championship Veterans 2024"]
[Site "Salou Tarragona"]
[Date "2024.05.18"]
[Round "8.1"]
[White "Fernandez Muixi, Francesc"]
[Black "Parals Marce, Luis"]
[Result "0-1"]
[ECO "A25"]
[WhiteElo "1988"]
[BlackElo "2000"]
[Annotator "RC"]
[PlyCount "92"]
[EventDate "2024.05.11"]
[EventType "swiss"]
[EventCountry "ESP"]
[SourceTitle "playchess.com"]
[Source "ChessBase"]
[SourceQuality "1"]
[TimeControl "5400+30"]

1. c4 {[%emt 0:00:03]} g6 {[%emt 0:00:37]} 2. g3 {[%emt 0:00:09]} Bg7 {[%emt 0:00:18]} 3. Bg2 {[%emt 0:00:08]} e5 {[%emt 0:00:15]} 4. Nc3 {[%emt 0:00:35]} d6 {[%emt 0:00:54]} 5. e3 {[%emt 0:03:23]} f5 {[%emt 0:01:12]} 6. d3 {[%emt 0:00:20]} Nf6 {[%emt 0:00:13]} 7. Nge2 {[%emt 0:00:06]} O-O {[%emt 0:00:39]} 8. O-O {[%emt 0:00:15]} a5 {[%emt 0:04:36]} 9. a3 {[%emt 0:00:42]} Nc6 {[%emt 0:02:43]} 10. Rb1 {[%emt 0:00:16]} Ne7 {[%emt 0:00:43]} 11. b4 {[%emt 0:03:38]} axb4 {[%emt 0:01:54]} 12. axb4 {[%emt 0:01:43]} c6 {[%emt 0:01:14]} 13. b5 {[%emt 0:06:09]} Be6 {[%emt 0:06:55]} 14. Bd2 {[%emt 0:07:42]} g5 {[%emt 0:08:19]} 15. f4 {[%emt 0:00:04]} gxf4 {[%emt 0:00:49]} 16. exf4 {[%emt 0:00:14]} Kh8 {[%emt 0:02:49]} 17. bxc6 {[%emt 0:02:44]} bxc6 {[%emt 0:00:20]} 18. Qb3 {[%emt 0:10:22]} Rc8 {[%emt 0:27:36]} 19. Qb6 {[%emt 0:13:26]} Qd7 {[%emt 0:03:33]} 20. h3 {[%emt 0:04:18]} Rg8 {[%emt 0:00:26]} 21. Kh2 {[%emt 0:00:20]} e4 {[%emt 0:00:52]} 22. Qe3 {[%emt 0:04:47]} Rce8 {[%emt 0:06:05]} 23. Rb4 {[%emt 0:07:16]} d5 {[%emt 0:04:29]} 24. Rfb1 {[%emt 0:19:11]} d4 {[%emt 0:00:44]} 25. Nxd4 {[%emt 0:01:28]} Ng4+ {[%emt 0:00:37]} 26. hxg4 {[%emt 0:00:03]} Bxd4 {[%emt 0:00:25]} 27. Qe1 {[%emt 0:01:04]} Bc5 {[%emt 0:01:17]} 28. dxe4 {[%emt 0:06:52]} Bxb4 {[%emt 0:12:40]} 29. Rxb4 {[%emt 0:00:06]} Rxg4 {[%emt 0:00:40]} 30. Ne2 {[%emt 0:01:59]} h5 {[%emt 0:01:13]} 31. Bc3+ {[%emt 0:01:03]} Kh7 {[%emt 0:00:11]} 32. Bf3 {[%emt 0:01:43]} Rg6 {[%emt 0:01:45]} 33. Bb2 {[%emt 0:00:29]} Qd3 {[%emt 0:00:37]} 34. Bg2 {[%emt 0:00:44]} fxe4 {[%emt 0:00:51]} 35. Nc1 {[%emt 0:00:13]} Qc2 {[%emt 0:00:25]} 36. Qxe4 {[%emt 0:00:41]} Qxe4 {[%emt 0:00:05]} 37. Bxe4 {[%emt 0:00:06]} Bf5 {[%emt 0:00:16]} 38. Bf3 {[%emt 0:00:11]} Rd6 {[%emt 0:00:49]} 39. Bc3 {[%emt 0:00:26]} Kg6 {[%emt 0:00:51]} 40. Rb6 {[%emt 0:00:17]} Bg4 {[%emt 0:03:21]} 41. Be4+ {[%emt 0:00:21]} Kf7 {[%emt 0:00:45]} 42. Nd3 {[%emt 0:00:14]} Ra8 {[%emt 0:02:40]} 43. c5 {[%emt 0:01:28]} Rdd8 {[%emt 0:01:15]} 44. Ne5+ {[%emt 0:00:28]} Kf8 {[%emt 0:00:14]} 45. Nxc6 {[%emt 0:00:37]} Nxc6 {[%emt 0:00:11]} 46. Bxc6 {[%emt 0:03:08]} Ra2+ {[%emt 0:00:12]} 0-1

[Event "Catalonia Championship Veterans 2024"]
[Site "Salou Tarragona"]
[Date "2024.05.18"]
[Round "8.2"]
[White "Brusi Noguera, Ricardo Ll."]
[Black "Lacasa Diaz, Josep Anton"]
[Result "0-1"]
[ECO "D04"]
[WhiteElo "2059"]
[BlackElo "2335"]
[Annotator "RC"]
[PlyCount "156"]
[EventDate "2024.05.11"]
[EventType "swiss"]
[EventCountry "ESP"]
[SourceTitle "playchess.com"]
[Source "ChessBase"]
[SourceQuality "1"]
[TimeControl "5400+30"]

1. d4 {[%emt 0:00:03]} d5 {[%emt 0:00:51]} 2. Nf3 {[%emt 0:00:11]} c5 {[%emt 0:00:43]} 3. e3 {[%emt 0:04:38]} Nf6 {[%emt 0:01:12]} 4. dxc5 {[%emt 0:00:53]} e6 {[%emt 0:01:00]} 5. b4 {[%emt 0:01:36]} a5 {[%emt 0:02:57]} 6. c3 {[%emt 0:01:38]} axb4 {[%emt 0:00:15]} 7. cxb4 {[%emt 0:00:06]} b6 {[%emt 0:00:04]} 8. Bb5+ {[%emt 0:00:50]} Bd7 {[%emt 0:00:25]} 9. Bxd7+ {[%emt 0:00:20]} Nbxd7 {[%emt 0:01:03]} 10. a4 {[%emt 0:00:29]} bxc5 {[%emt 0:00:10]} 11. b5 {[%emt 0:00:11]} Bd6 {[%emt 0:03:03]} 12. Bb2 {[%emt 0:00:45]} Qc7 {[%emt 0:04:14]} 13. Nbd2 {[%emt 0:06:19]} c4 {[%emt 0:11:02]} 14. Bc3 {[%emt 0:03:58]} Nc5 {[%emt 0:11:18]} 15. O-O {[%emt 0:00:28]} O-O {[%emt 0:04:06]} 16. h3 {[%emt 0:12:09]} Nfe4 {[%emt 0:01:07]} 17. Nxe4 {[%emt 0:01:31]} Nxe4 {[%emt 0:00:08]} 18. Qc2 {[%emt 0:01:48]} Nxc3 {[%emt 0:21:07]} 19. Qxc3 {[%emt 0:00:30]} Ra5 {[%emt 0:01:00]} 20. Ra2 {[%emt 0:18:57]} Rfa8 {[%emt 0:00:35]} 21. Qc2 {[%emt 0:01:20]} Bc5 {[%emt 0:04:58]} 22. Rd1 {[%emt 0:04:32]} f5 {[%emt 0:01:46]} 23. g4 {[%emt 0:07:22]} Rf8 {[%emt 0:04:56]} 24. Nd4 {[%emt 0:05:38]} Bxd4 {[%emt 0:01:27]} 25. Rxd4 {[%emt 0:01:17]} fxg4 {[%emt 0:01:48]} 26. hxg4 {[%emt 0:01:18]} Qa7 {[%emt 0:03:23]} 27. Rd1 {[%emt 0:01:28]} Rc8 {[%emt 0:00:57]} 28. Kg2 {[%emt 0:05:59]} Ra8 {[%emt 0:03:52]} 29. Rda1 {[%emt 0:02:17]} Qb7 {[%emt 0:01:56]} 30. f3 {[%emt 0:01:46]} Qa7 {[%emt 0:02:01]} 31. Qc3 {[%emt 0:01:02]} Qc7 {[%emt 0:01:54]} 32. Qb4 {[%emt 0:04:05]} Qb6 {[%emt 0:00:42]} 33. Qc3 {[%emt 0:00:31]} Qd6 {[%emt 0:01:37]} 34. f4 {[%emt 0:03:45]} h6 {[%emt 0:01:33]} 35. Qa3 {[%emt 0:01:00]} Qb6 {[%emt 0:00:33]} 36. Qc3 {[%emt 0:00:06]} Qd6 {[%emt 0:00:30]} 37. Qa3 {[%emt 0:00:13]} Qxa3 {[%emt 0:01:02]} 38. Rxa3 {[%emt 0:00:01]} Kf7 {[%emt 0:00:04]} 39. Kf3 {[%emt 0:00:38]} Ke7 {[%emt 0:00:14]} 40. Ke2 {[%emt 0:00:12]} Kd6 {[%emt 0:00:05]} 41. Kd2 {[%emt 0:00:20]} Kc5 {[%emt 0:00:20]} 42. Kc3 {[%emt 0:00:15]} g5 {[%emt 0:00:33]} 43. fxg5 {[%emt 0:04:05]} hxg5 {[%emt 0:00:04]} 44. b6 {[%emt 0:00:27]} e5 {[%emt 0:01:35]} 45. Rb1 {[%emt 0:01:06]} Rb8 {[%emt 0:03:14]} 46. b7 {[%emt 0:00:52]} d4+ {[%emt 0:00:21]} 47. exd4+ {[%emt 0:00:08]} exd4+ {[%emt 0:00:04]} 48. Kd2 {[%emt 0:00:59]} Ra7 {[%emt 0:01:46]} 49. Rb5+ {[%emt 0:00:26]} Kc6 {[%emt 0:00:05]} 50. Rb4 {[%emt 0:00:41]} Kd5 {[%emt 0:01:42]} 51. Rf3 {[%emt 0:01:24]} Raxb7 {[%emt 0:00:11]} 52. Rf5+ {[%emt 0:00:09]} Ke4 {[%emt 0:00:07]} 53. Rxc4 {[%emt 0:00:09]} Rh8 {[%emt 0:01:32]} 54. Rf2 {[%emt 0:01:13]} Rb2+ {[%emt 0:00:25]} 55. Rc2 {[%emt 0:00:14]} Rxc2+ {[%emt 0:00:24]} 56. Kxc2 {[%emt 0:00:01]} Ke3 {[%emt 0:00:35]} 57. Rd2 {[%emt 0:03:08]} Rc8+ {[%emt 0:01:30]} 58. Kd1 {[%emt 0:00:02]} d3 {[%emt 0:00:09]} 59. Rh2 {[%emt 0:00:51]} Rc3 {[%emt 0:02:39]} 60. Rh8 {[%emt 0:00:53]} Ra3 {[%emt 0:00:19]} 61. Re8+ {[%emt 0:00:09]} Kf4 {[%emt 0:00:14]} 62. Ra8 {[%emt 0:01:30]} Kxg4 {[%emt 0:00:16]} 63. a5 {[%emt 0:00:19]} Ra2 {[%emt 0:00:47]} 64. a6 {[%emt 0:00:10]} Kg3 {[%emt 0:01:05]} 65. a7 {[%emt 0:00:10]} g4 {[%emt 0:00:08]} 66. Ke1 {[%emt 0:00:36]} Re2+ {[%emt 0:00:42]} 67. Kf1 {[%emt 0:01:08]} Rf2+ {[%emt 0:00:06]} 68. Ke1 {[%emt 0:00:12]} Rf7 {[%emt 0:00:10]} 69. Kd2 {[%emt 0:00:20]} Rd7 {[%emt 0:00:07]} 70. Rf8 {[%emt 0:01:01]} Rxa7 {[%emt 0:00:11]} 71. Kxd3 {[%emt 0:00:00]} Re7 {[%emt 0:00:14]} 72. Kd2 {[%emt 0:00:22]} Kh2 {[%emt 0:00:22]} 73. Rf6 {[%emt 0:00:55]} g3 {[%emt 0:00:07]} 74. Rf8 {[%emt 0:00:11]} Re5 {[%emt 0:00:39]} 75. Rf7 {[%emt 0:00:07]} g2 {[%emt 0:00:20]} 76. Rh7+ {[%emt 0:00:10]} Kg3 {[%emt 0:00:15]} 77. Rg7+ {[%emt 0:00:10]} Kf3 {[%emt 0:00:20]} 78. Rg8 {[%emt 0:00:32]} Re4 {[%emt 0:00:28]} 0-1

[Event "Catalonia Championship Veterans 2024"]
[Site "Salou Tarragona"]
[Date "2024.05.18"]
[Round "8.3"]
[White "Torrecillas Martinez, Antonio"]
[Black "Sanchez Criado, Lluis"]
[Result "1-0"]
[ECO "D85"]
[WhiteElo "2298"]
[BlackElo "2060"]
[Annotator "RC"]
[PlyCount "96"]
[EventDate "2024.05.11"]
[EventType "swiss"]
[EventCountry "ESP"]
[SourceTitle "playchess.com"]
[Source "ChessBase"]
[SourceQuality "1"]
[TimeControl "5400+30"]

1. c4 {[%emt 0:00:01]} Nf6 {[%emt 0:00:24]} 2. Nc3 {[%emt 0:00:11]} d5 {[%emt 0:01:48]} 3. cxd5 {[%emt 0:00:45]} Nxd5 {[%emt 0:00:10]} 4. Nf3 {[%emt 0:00:07]} g6 {[%emt 0:01:58]} 5. Qa4+ {[%emt 0:01:12]} c6 {[%emt 0:00:38]} 6. Nxd5 {[%emt 0:07:50]} Qxd5 {[%emt 0:00:19]} 7. e4 {[%emt 0:00:12]} Qd8 {[%emt 0:09:18]} 8. d4 {[%emt 0:03:51]} Bg7 {[%emt 0:00:48]} 9. Be3 {[%emt 0:02:42]} O-O {[%emt 0:02:50]} 10. Rd1 {[%emt 0:06:36]} Bg4 {[%emt 0:02:58]} 11. Be2 {[%emt 0:00:58]} Qc7 {[%emt 0:03:34]} 12. O-O {[%emt 0:06:25]} Nd7 {[%emt 0:01:56]} 13. Rd2 {[%emt 0:05:17]} Nb6 {[%emt 0:10:40]} 14. Qb3 {[%emt 0:12:37]} e6 {[%emt 0:08:20]} 15. Rfd1 {[%emt 0:04:54]} Rad8 {[%emt 0:06:15]} 16. h3 {[%emt 0:03:30]} Bxf3 {[%emt 0:00:12]} 17. Bxf3 {[%emt 0:00:02]} Kh8 {[%emt 0:07:08]} 18. g3 {[%emt 0:03:42]} f5 {[%emt 0:04:13]} 19. Qxe6 {[%emt 0:20:27]} Rde8 {[%emt 0:04:03]} 20. Qb3 {[%emt 0:00:25]} fxe4 {[%emt 0:00:19]} 21. Bg2 {[%emt 0:00:09]} Nd5 {[%emt 0:00:37]} 22. Re2 {[%emt 0:00:31]} Qd7 {[%emt 0:06:11]} 23. Rdd2 {[%emt 0:07:50]} Rf7 {[%emt 0:00:39]} 24. h4 {[%emt 0:00:46]} h5 {[%emt 0:00:49]} 25. Kh2 {[%emt 0:00:36]} Kh7 {[%emt 0:00:24]} 26. Bg5 {[%emt 0:00:31]} Nf6 {[%emt 0:03:16]} 27. Bxf6 {[%emt 0:02:56]} Rxf6 {[%emt 0:00:55]} 28. Bxe4 {[%emt 0:00:55]} Rd6 {[%emt 0:04:49]} 29. Qf3 {[%emt 0:01:39]} Kg8 {[%emt 0:03:22]} 30. d5 {[%emt 0:01:37]} c5 {[%emt 0:01:04]} 31. Qd3 {[%emt 0:00:04]} Kh7 {[%emt 0:02:05]} 32. f4 {[%emt 0:00:00]} Rf8 {[%emt 0:01:12]} 33. Bf3 {[%emt 0:01:16]} Kh6 {[%emt 0:00:42]} 34. Rd1 {[%emt 0:01:10]} Bd4 {[%emt 0:03:04]} 35. Rde1 {[%emt 0:00:05]} Rxd5 {[%emt 0:03:25]} 36. Bxd5 {[%emt 0:00:48]} Qxd5 {[%emt 0:00:03]} 37. Qd2 {[%emt 0:01:19]} Rf5 {[%emt 0:01:04]} 38. b3 {[%emt 0:01:54]} Qf3 {[%emt 0:00:44]} 39. Rg2 {[%emt 0:01:06]} Bc3 {[%emt 0:01:53]} 40. Qe2 {[%emt 0:00:03]} Qc6 {[%emt 0:01:15]} 41. Rd1 {[%emt 0:00:03]} Bd4 {[%emt 0:00:15]} 42. Rd3 {[%emt 0:00:48]} Qd6 {[%emt 0:00:28]} 43. Qe4 {[%emt 0:00:42]} b6 {[%emt 0:02:08]} 44. Re2 {[%emt 0:00:16]} a5 {[%emt 0:00:50]} 45. Kg2 {[%emt 0:00:04]} b5 {[%emt 0:01:18]} 46. Rd1 {[%emt 0:01:36]} Qd7 {[%emt 0:01:09]} 47. Qe8 {[%emt 0:00:40]} Qd5+ {[%emt 0:00:26]} 48. Re4 {[%emt 0:00:34]} Re5 {[%emt 0:02:32]} 1-0

[Event "Catalonia Championship Veterans 2024"]
[Site "Salou Tarragona"]
[Date "2024.05.18"]
[Round "8.4"]
[White "Noria Silvestre, Joaquin"]
[Black "Cuadras Avellana, Jordi"]
[Result "0-1"]
[ECO "B80"]
[WhiteElo "2126"]
[BlackElo "2176"]
[Annotator "RC"]
[PlyCount "50"]
[EventDate "2024.05.11"]
[EventType "swiss"]
[EventCountry "ESP"]
[SourceTitle "playchess.com"]
[Source "ChessBase"]
[SourceQuality "1"]
[TimeControl "5400+30"]

1. e4 {[%emt 0:06:05]} c5 {[%emt 0:00:17]} 2. Nf3 {[%emt 0:00:26]} e6 {[%emt 0:00:29]} 3. d4 {[%emt 0:00:13]} cxd4 {[%emt 0:00:08]} 4. Nxd4 {[%emt 1:25:46]} a6 {[%emt 1:31:36]} 5. Nc3 {[%emt 0:00:00]} Qc7 {[%emt 0:00:00]} 6. g3 {[%emt 0:00:00]} d6 {[%emt 0:00:00]} 7. Bg2 {[%emt 0:00:00]} Nf6 {[%emt 0:00:00]} 8. O-O {[%emt 0:00:00]} Be7 {[%emt 0:00:00]} 9. h3 {[%emt 0:00:00]} Nc6 {[%emt 0:00:00]} 10. Nde2 {[%emt 0:00:00]} b5 {[%emt 0:00:00]} 11. Be3 {[%emt 0:00:00]} Bb7 {[%emt 0:00:00]} 12. a3 {[%emt 0:00:00]} O-O {[%emt 0:00:00]} 13. g4 {[%emt 0:00:00]} Ne5 {[%emt 0:00:00]} 14. b3 {[%emt 0:00:00]} d5 {[%emt 0:00:00]} 15. f4 {[%emt 0:00:00]} Ng6 {[%emt 0:00:00]} 16. e5 {[%emt 0:00:00]} Ne4 {[%emt 0:00:00]} 17. Bd4 {[%emt 0:00:00]} Bc5 {[%emt 0:00:00]} 18. Nxe4 {[%emt 0:00:00]} dxe4 {[%emt 0:00:00]} 19. Qe1 {[%emt 0:00:00]} Rad8 {[%emt 0:00:00]} 20. c3 {[%emt 0:00:00]} f6 {[%emt 0:00:00]} 21. b4 {[%emt 0:00:00]} Bb6 {[%emt 0:00:00]} 22. Qf2 {[%emt 0:00:00]} Bxd4 {[%emt 0:00:00]} 23. Nxd4 {[%emt 0:00:00]} Bd5 {[%emt 0:00:00]} 24. f5 {[%emt 0:00:00]} fxe5 {[%emt 0:00:00]} 25. Qg3 {[%emt 0:00:00]} Nf4 {[%emt 0:00:00]} 0-1

[Event "Catalonia Championship Veterans 2024"]
[Site "Salou Tarragona"]
[Date "2024.05.18"]
[Round "8.5"]
[White "Pogorelov, Ruslan"]
[Black "Saldana Caballe, Enric"]
[Result "1/2-1/2"]
[ECO "D35"]
[WhiteElo "2282"]
[BlackElo "1967"]
[Annotator "RC"]
[PlyCount "22"]
[EventDate "2024.05.11"]
[EventType "swiss"]
[EventCountry "ESP"]
[SourceTitle "playchess.com"]
[Source "ChessBase"]
[SourceQuality "1"]
[TimeControl "5400+30"]

1. d4 {[%emt 0:00:03]} d5 {[%emt 0:00:12]} 2. c4 {[%emt 0:00:07]} e6 {[%emt 0:00:05]} 3. Nc3 {[%emt 0:00:09]} h6 {[%emt 0:00:07]} 4. cxd5 {[%emt 0:00:07]} exd5 {[%emt 0:00:12]} 5. Bf4 {[%emt 0:00:08]} Nf6 {[%emt 0:00:08]} 6. e3 {[%emt 0:00:11]} Bf5 {[%emt 0:00:21]} 7. Bd3 {[%emt 0:00:21]} Bxd3 {[%emt 0:00:08]} 8. Qxd3 {[%emt 0:00:08]} c6 {[%emt 0:00:08]} 9. Nf3 {[%emt 0:00:15]} Bd6 {[%emt 0:00:14]} 10. Bxd6 {[%emt 0:00:09]} Qxd6 {[%emt 0:00:02]} 11. O-O {[%emt 0:00:11]} O-O {[%emt 1:34:23]} 1/2-1/2

[Event "Catalonia Championship Veterans 2024"]
[Site "Salou Tarragona"]
[Date "2024.05.18"]
[Round "8.6"]
[White "Melero Sanchez, Pere"]
[Black "Tosan Pereira, Felipe"]
[Result "1-0"]
[ECO "E94"]
[WhiteElo "1934"]
[BlackElo "2062"]
[Annotator "RC"]
[PlyCount "47"]
[EventDate "2024.05.11"]
[EventType "swiss"]
[EventCountry "ESP"]
[SourceTitle "playchess.com"]
[Source "ChessBase"]
[SourceQuality "1"]
[TimeControl "5400+30"]

1. d4 {[%emt 0:00:03]} Nf6 {[%emt 0:00:10]} 2. c4 {[%emt 0:00:05]} g6 {[%emt 0:00:56]} 3. Nc3 {[%emt 0:00:11]} Bg7 {[%emt 0:00:09]} 4. e4 {[%emt 0:00:17]} d6 {[%emt 0:00:06]} 5. Nf3 {[%emt 0:00:12]} O-O {[%emt 0:00:12]} 6. Be2 {[%emt 0:00:07]} e5 {[%emt 0:00:07]} 7. O-O {[%emt 0:00:17]} exd4 {[%emt 0:00:11]} 8. Nxd4 {[%emt 0:00:18]} Re8 {[%emt 0:00:09]} 9. f3 {[%emt 0:00:31]} c6 {[%emt 0:00:13]} 10. Kh1 {[%emt 0:00:36]} Qa5 {[%emt 0:06:34]} 11. Bf4 {[%emt 0:02:38]} Rd8 {[%emt 0:05:34]} 12. Nb3 {[%emt 0:03:10]} Qc7 {[%emt 0:17:17]} 13. c5 {[%emt 0:03:26]} Ne8 {[%emt 0:04:01]} 14. Qd2 {[%emt 0:03:28]} Be5 {[%emt 0:03:43]} 15. Rfd1 {[%emt 0:08:11]} Rd7 {[%emt 0:05:57]} 16. Qe3 {[%emt 0:12:03]} Re7 {[%emt 0:12:34]} 17. cxd6 {[%emt 0:05:12]} Bxd6 {[%emt 0:05:11]} 18. Bxd6 {[%emt 0:23:04]} Nxd6 {[%emt 0:00:11]} 19. Rac1 {[%emt 0:01:06]} Be6 {[%emt 0:06:49]} 20. Qd4 {[%emt 0:07:44]} Ne8 {[%emt 0:10:47]} 21. Qd8 {[%emt 0:06:59]} Qxd8 {[%emt 0:12:41]} 22. Rxd8 {[%emt 0:00:03]} Kg7 {[%emt 0:04:46]} 23. Nc5 {[%emt 0:02:46]} Bd7 {[%emt 0:01:50]} 24. Nxd7 {[%emt 0:00:27]} 1-0

[Event "Catalonia Championship Veterans 2024"]
[Site "Salou Tarragona"]
[Date "2024.05.18"]
[Round "8.7"]
[White "Palacin Martin, Ricardo"]
[Black "Buxade Roca, Guillermo"]
[Result "1/2-1/2"]
[ECO "D46"]
[WhiteElo "1968"]
[BlackElo "1916"]
[Annotator "RC"]
[PlyCount "48"]
[EventDate "2024.05.11"]
[EventType "swiss"]
[EventCountry "ESP"]
[SourceTitle "playchess.com"]
[Source "ChessBase"]
[SourceQuality "1"]
[TimeControl "5400+30"]

1. d4 {[%emt 0:00:04]} d5 {[%emt 0:00:23]} 2. c4 {[%emt 0:00:05]} e6 {[%emt 0:00:20]} 3. Nc3 {[%emt 0:00:16]} Nf6 {[%emt 0:00:50]} 4. Nf3 {[%emt 0:00:07]} Nbd7 {[%emt 0:00:49]} 5. e3 {[%emt 0:00:37]} c6 {[%emt 0:00:27]} 6. Bd3 {[%emt 0:00:13]} Bd6 {[%emt 0:01:30]} 7. O-O {[%emt 0:00:10]} O-O {[%emt 0:00:17]} 8. Qc2 {[%emt 0:00:04]} Re8 {[%emt 0:01:21]} 9. e4 {[%emt 0:00:12]} dxe4 {[%emt 0:01:49]} 10. Nxe4 {[%emt 0:00:10]} Nxe4 {[%emt 0:11:45]} 11. Bxe4 {[%emt 0:00:10]} Nf8 {[%emt 0:00:55]} 12. Re1 {[%emt 0:01:47]} Qc7 {[%emt 0:04:25]} 13. Bd2 {[%emt 0:05:23]} Bf4 {[%emt 0:05:58]} 14. Bc3 {[%emt 0:01:26]} Bh6 {[%emt 0:00:30]} 15. Rad1 {[%emt 0:05:26]} Bd7 {[%emt 0:02:43]} 16. Ne5 {[%emt 0:02:31]} Rad8 {[%emt 0:03:02]} 17. g3 {[%emt 0:06:50]} Bc8 {[%emt 0:00:57]} 18. Bg2 {[%emt 0:00:09]} g6 {[%emt 0:03:29]} 19. Qe4 {[%emt 0:06:09]} Bg7 {[%emt 0:01:36]} 20. Qh4 {[%emt 0:09:24]} Qe7 {[%emt 0:05:01]} 21. Qxe7 {[%emt 0:04:11]} Rxe7 {[%emt 0:00:25]} 22. d5 {[%emt 0:04:09]} exd5 {[%emt 0:02:12]} 23. cxd5 {[%emt 0:00:07]} cxd5 {[%emt 0:02:24]} 24. Bxd5 {[%emt 0:05:37]} Be6 {[%emt 0:06:18]} 1/2-1/2

[Event "Catalonia Championship Veterans 2024"]
[Site "Salou Tarragona"]
[Date "2024.05.18"]
[Round "8.8"]
[White "Jove Grau, Lluis"]
[Black "Franzoni Ladron de Guevara, Enric"]
[Result "0-1"]
[ECO "B18"]
[WhiteElo "2049"]
[BlackElo "1854"]
[Annotator "RC"]
[PlyCount "94"]
[EventDate "2024.05.11"]
[EventType "swiss"]
[EventCountry "ESP"]
[SourceTitle "playchess.com"]
[Source "ChessBase"]
[SourceQuality "1"]
[TimeControl "5400+30"]

1. e4 {[%emt 0:00:45]} c6 {[%emt 0:00:08]} 2. d4 {[%emt 0:01:10]} d5 {[%emt 0:00:10]} 3. Nc3 {[%emt 0:00:08]} dxe4 {[%emt 0:00:14]} 4. Nxe4 {[%emt 0:00:06]} Bf5 {[%emt 0:00:13]} 5. Ng3 {[%emt 0:03:44]} Bg6 {[%emt 0:00:18]} 6. Nf3 {[%emt 0:00:45]} Nd7 {[%emt 0:00:42]} 7. Bc4 {[%emt 0:00:28]} e6 {[%emt 0:01:41]} 8. O-O {[%emt 0:00:10]} Bd6 {[%emt 0:02:33]} 9. c3 {[%emt 0:01:50]} Ngf6 {[%emt 0:01:13]} 10. Qe2 {[%emt 0:04:09]} Nb6 {[%emt 0:03:08]} 11. Bb3 {[%emt 0:00:53]} O-O {[%emt 0:00:42]} 12. Ne5 {[%emt 0:01:58]} Qc7 {[%emt 0:02:59]} 13. h4 {[%emt 0:05:58]} Bxe5 {[%emt 0:01:39]} 14. dxe5 {[%emt 0:00:11]} Nfd7 {[%emt 0:00:35]} 15. h5 {[%emt 0:01:17]} Bf5 {[%emt 0:00:23]} 16. f4 {[%emt 0:01:28]} Nd5 {[%emt 0:01:31]} 17. Nxf5 {[%emt 0:02:22]} exf5 {[%emt 0:00:23]} 18. Bxd5 {[%emt 0:05:32]} cxd5 {[%emt 0:00:25]} 19. Qd3 {[%emt 0:00:47]} g6 {[%emt 0:02:46]} 20. Qh3 {[%emt 0:05:27]} Qb6+ {[%emt 0:03:23]} 21. Be3 {[%emt 0:02:27]} Qe6 {[%emt 0:00:44]} 22. Bd4 {[%emt 0:01:43]} Rac8 {[%emt 0:01:10]} 23. Rae1 {[%emt 0:01:53]} Nc5 {[%emt 0:01:03]} 24. Re3 {[%emt 0:08:49]} Ne4 {[%emt 0:00:36]} 25. Qh4 {[%emt 0:02:18]} Rfe8 {[%emt 0:03:47]} 26. Rh3 {[%emt 0:07:02]} Qe7 {[%emt 0:00:54]} 27. Qe1 {[%emt 0:05:33]} Rc6 {[%emt 0:09:10]} 28. g3 {[%emt 0:05:42]} gxh5 {[%emt 0:14:56]} 29. Rxh5 {[%emt 0:04:37]} Rg6 {[%emt 0:00:27]} 30. Rf3 {[%emt 0:00:05]} Qe6 {[%emt 0:01:19]} 31. Kg2 {[%emt 0:01:00]} h6 {[%emt 0:01:57]} 32. Qh1 {[%emt 0:00:34]} Kh7 {[%emt 0:00:40]} 33. Rh3 {[%emt 0:05:39]} Reg8 {[%emt 0:00:36]} 34. Qd1 {[%emt 0:01:18]} a6 {[%emt 0:07:34]} 35. a4 {[%emt 0:02:49]} Rg4 {[%emt 0:00:42]} 36. b4 {[%emt 0:03:15]} Qg6 {[%emt 0:00:53]} 37. Bf2 {[%emt 0:01:04]} Qc6 {[%emt 0:00:46]} 38. Qd4 {[%emt 0:01:33]} b5 {[%emt 0:06:42]} 39. a5 {[%emt 0:01:49]} Rc8 {[%emt 0:04:17]} 40. Rd3 {[%emt 0:02:59]} Nxc3 {[%emt 0:04:59]} 41. e6 {[%emt 0:00:41]} Ne2 {[%emt 0:03:45]} 42. Qf6 {[%emt 0:04:21]} Nxf4+ {[%emt 0:01:49]} 43. Kh2 {[%emt 0:00:20]} Nxh3 {[%emt 0:00:12]} 44. Qxf7+ {[%emt 0:03:08]} Rg7 {[%emt 0:01:47]} 45. Qxf5+ {[%emt 0:00:15]} Kg8 {[%emt 0:00:53]} 46. Kxh3 {[%emt 0:00:23]} Rf8 {[%emt 0:00:22]} 47. Qe5 {[%emt 0:01:58]} d4 {[%emt 0:00:55]} 0-1

[Event "Catalonia Championship Veterans 2024"]
[Site "Salou Tarragona"]
[Date "2024.05.18"]
[Round "8.9"]
[White "Fernandez Vicente, Carmelo"]
[Black "Mas Recorda, Pere"]
[Result "1/2-1/2"]
[ECO "A25"]
[WhiteElo "2005"]
[BlackElo "1932"]
[Annotator "NA RC"]
[PlyCount "72"]
[EventDate "2024.05.11"]
[EventType "swiss"]
[EventCountry "ESP"]
[SourceTitle "playchess.com"]
[Source "ChessBase"]
[SourceQuality "1"]
[TimeControl "5400+30"]

1. c4 {[%emt 0:00:05]} e5 {[%emt 0:00:28]} 2. g3 {[%emt 0:00:31]} Nc6 {[%emt 0:00:34]} 3. Bg2 {[%emt 0:00:30]} Nf6 {[%emt 0:00:54]} 4. Nc3 {[%emt 0:01:55]} d6 {[%emt 0:01:09]} 5. d3 {[%emt 0:01:56]} h6 {[%emt 0:00:15]} 6. e4 {[%emt 0:01:57]} Be7 {[%emt 0:00:29]} 7. Nge2 {[%emt 0:00:42]} O-O {[%emt 0:00:40]} 8. O-O {[%emt 0:00:25]} Bg4 {[%emt 0:01:29]} 9. f3 {[%emt 0:00:45]} Bd7 {[%emt 0:02:02]} 10. Be3 {[%emt 0:02:01]} Kh8 {[%emt 0:00:54]} 11. Qd2 {[%emt 0:01:19]} Ng8 {[%emt 0:00:15]} 12. d4 {[%emt 0:05:18]} exd4 {[%emt 0:02:35]} 13. Nxd4 {[%emt 0:00:12]} Nxd4 {[%emt 0:00:26]} 14. Bxd4 {[%emt 0:00:24]} Bf6 {[%emt 0:00:33]} 15. Rad1 {[%emt 0:00:57]} Bc6 {[%emt 0:02:19]} 16. Nd5 {[%emt 0:01:01]} Bxd5 {[%emt 0:00:31]} 17. cxd5 {[%emt 0:00:19]} Bxd4+ {[%emt 0:01:46]} 18. Qxd4 {[%emt 0:00:11]} f5 {[%emt 0:00:53]} 19. exf5 {[%emt 0:00:54]} Rxf5 {[%emt 0:00:04]} 20. f4 {[%emt 0:00:24]} Rf7 {[%emt 0:01:23]} 21. Bh3 {[%emt 0:01:41]} Re7 {[%emt 0:00:29]} 22. Rfe1 {[%emt 0:00:19]} b6 {[%emt 0:00:26]} 23. Re6 {[%emt 0:00:29]} Qf8 {[%emt 0:01:37]} 24. Rde1 {[%emt 0:06:57]} Rae8 {[%emt 0:00:17]} 25. f5 {[%emt 0:02:50]} Rxe6 {[%emt 0:01:46]} 26. fxe6 {[%emt 0:00:46]} Qf6 {[%emt 0:00:34]} 27. Qd2 {[%emt 0:00:48]} Qg6 {[%emt 0:07:19]} 28. Rf1 {[%emt 0:02:42]} Nf6 {[%emt 0:00:11]} 29. Bf5 {[%emt 0:00:44]} Qh5 {[%emt 0:00:16]} 30. Rf4 {[%emt 0:02:46]} Qg5 {[%emt 0:03:53]} 31. Qd3 {[%emt 0:02:29]} Re7 {[%emt 1:09:33]} 32. h4 {[%emt 1:02:13]} Qh5 {[%emt 0:00:00]} 33. Bg6 {[%emt 0:00:00]} Qe5 {[%emt 0:00:00]} 34. Qd2 {[%emt 0:00:00]} Kg8 {[%emt 0:00:00]} 35. Kh2 {[%emt 0:00:00]} Qxd5 {[%emt 0:00:00]} 36. Bf7+ {[%emt 0:02:00]} Kh8 1/2-1/2